bitfinex/quotes_ETHUSD_20250622
["timestamp","ask_amount","ask_price","bid_price","bid_amount"]
[1750606291019,11.78141164,2190.9,2190.5,13.23419631]
[1750606291020,0.03418488,2190.8,2190.5,13.23419631]
[1750606292177,10.03418488,2190.8,2190.5,13.23419631]
[1750606292460,8.576,2190.7,2190.5,13.23419631]
[1750606292646,0.03418488,2190.6,2190.5,13.23419631]
[1750606293359,0.03418488,2190.6,2190.5,13.7012545]
[1750606293755,11.196,2190.6,2190.5,13.7012545]
[1750606295282,8.576,2190.6,2190.5,13.7012545]
[1750606296765,8.575,2190.6,2190.5,18.26642226]
[1750606297260,8.575,2190.6,2190.5,13.7012545]
[1750606297476,8.575,2190.6,2190.5,18.26642226]
[1750606298363,0.08,2191.2,2190.5,18.26642226]
[1750606298574,2.619,2190.9,2190.8,13.23419631]
[1750606298866,0.03418488,2190.9,2190.8,17.79873894]
[1750606299054,8.571,2191.1,2191.0,4.56396693]
[1750606299252,11.191,2191.3,2191.0,13.23419631]
[1750606299564,0.03418488,2191.2,2191.0,17.79831516]
[1750606299735,11.191,2191.3,2191.1,4.56391766]
[1750606299931,0.08,2191.8,2191.0,13.23419631]
[1750606300186,11.22418488,2191.7,2191.6,13.23419631]
[1750606300333,21.19,2191.7,2191.6,13.23419631]
[1750606300775,21.19,2191.7,2191.3,13.23419631]
[1750606301065,21.19,2191.7,2191.0,13.23419631]
[1750606301436,0.03418488,2191.6,2191.0,13.23419631]
[1750606302161,10.0,2191.7,2191.0,13.23419631]
[1750606302365,11.187,2191.5,2191.0,13.23419631]
[1750606302578,0.03418488,2191.4,2191.0,13.23419631]
[1750606302930,0.03418488,2191.4,2190.5,0.45740848]
[1750606302931,0.08,2191.3,2190.7,13.23419631]
[1750606303136,10.0,2191.1,2190.7,13.23419631]
[1750606303332,2.65318488,2191.0,2190.7,13.23419631]
[1750606303532,10.0,2190.8,2190.5,13.69160479]
[1750606303727,8.565,2190.8,2190.5,13.23419631]
[1750606303969,8.565,2190.8,2190.7,4.56475099]
[1750606304269,8.565,2190.8,2190.5,13.23419631]
[1750606304447,0.03418488,2190.7,2190.5,13.23419631]
[1750606304649,0.03418488,2190.7,2190.5,17.79934886]
[1750606305167,8.565,2190.8,2190.6,4.56495937]
[1750606305379,0.08,2191.8,2191.0,4.56393584]
[1750606305543,11.21718488,2191.7,2191.2,13.23419631]
[1750606305747,21.183,2191.6,2191.2,13.23419631]
[1750606306057,0.03418488,2191.5,2191.2,13.23419631]
[1750606307274,8.562,2191.4,2191.2,13.23419631]
[1750606307607,8.562,2191.4,2190.7,4.5647199]
[1750606307608,1.5296,2190.2,2189.1,13.23419631]
[1750606307884,10.0,2190.0,2189.1,13.23419631]
[1750606308068,0.03418488,2189.9,2189.1,13.23419631]
[1750606308241,8.561,2189.8,2189.1,13.23419631]
[1750606308437,0.03418488,2189.7,2189.1,13.23419631]
[1750606308633,0.89370337,2189.7,2189.1,13.23419631]
[1750606309153,0.89370337,2189.7,2189.3,9.92097454]
[1750606310247,1.5296,2190.2,2189.6,9.92097454]
[1750606310571,8.561,2190.1,2189.9,9.92097454]
[1750606310773,1.5296,2190.8,2189.9,9.92097454]
[1750606310973,10.97,2191.4,2190.4,9.92097454]
[1750606310974,8.562,2190.7,2190.4,9.92097454]
[1750606311175,1.5296,2191.1,2190.4,9.92097454]
[1750606311348,0.03418488,2190.8,2190.7,9.92097454]
[1750606311672,1.5296,2191.1,2190.7,9.92097454]
[1750606311673,8.59618488,2191.0,2190.7,9.92097454]
[1750606311876,3.12469355,2190.9,2190.7,9.92097454]
[1750606312037,0.03418488,2190.9,2190.7,9.92097454]
[1750606312861,1.04676337,2190.9,2190.3,9.92097454]
[1750606313061,15.61124198,2190.9,2190.0,14.48712361]
[1750606313265,15.5770571,2190.9,2190.0,14.48712361]
[1750606313463,15.5770571,2190.9,2190.0,9.92097454]
[1750606313464,0.03418488,2190.8,2190.0,9.92097454]
[1750606313668,11.01257849,2190.9,2190.2,4.56576909]
[1750606313847,0.90363652,2190.8,2190.3,9.92097454]
[1750606314944,0.90363652,2190.8,2190.3,14.48655893]
[1750606315175,0.90363652,2190.8,2190.3,9.92097454]
[1750606315751,0.03418488,2190.8,2190.4,1.5516]
[1750606315950,8.561,2191.0,2190.4,1.5516]
[1750606316257,0.03418488,2190.9,2190.4,1.5516]
[1750606316457,8.561,2191.0,2190.4,6.16256349]
[1750606316664,0.03418488,2190.9,2190.5,4.56503601]
[1750606316846,0.03418488,2190.9,2190.6,14.48586755]
[1750606317051,1.4061,2191.4,2190.7,4.56475099]
[1750606317281,8.561,2191.3,2191.0,4.56401801]
[1750606317449,1.4061,2191.7,2190.9,16.03686636]
[1750606317649,8.59518488,2191.6,2190.9,16.03677886]
[1750606317849,10.0,2191.5,2191.1,4.56390361]
[1750606318045,0.03418488,2191.4,2191.1,4.56390361]
[1750606318290,0.03418488,2191.4,2191.2,4.56369366]
[1750606318485,0.03418488,2191.4,2190.9,11.47257454]
[1750606318689,0.03418488,2191.4,2191.0,4.56412317]
[1750606319562,1.99671,2191.5,2191.0,4.56397968]
[1750606319756,1.99671,2191.5,2190.9,11.47257454]
[1750606319757,0.03418488,2191.4,2191.1,4.56390107]
[1750606320083,0.03418488,2191.4,2191.0,4.56412596]
[1750606320283,0.03418488,2191.4,2190.9,11.47257454]
[1750606320488,8.56,2191.7,2191.3,4.56337596]
[1750606320656,0.89018488,2191.6,2191.3,4.56337596]
[1750606320856,1.4175,2192.0,2191.5,9.92097454]
[1750606321086,0.03418488,2191.9,2191.5,9.92097454]
[1750606321261,0.03418488,2191.9,2191.5,11.33017454]
[1750606321585,8.559,2192.0,2191.5,11.33017454]
[1750606321794,0.03418488,2191.9,2191.5,11.33017454]
[1750606322004,0.89350337,2191.9,2191.5,1.4092]
[1750606322307,11.4175,2191.8,2190.9,11.33017454]
[1750606322451,8.559,2191.8,2191.5,14.48395314]
[1750606322655,0.03418488,2191.7,2191.5,9.92097454]
[1750606323379,0.03418488,2191.7,2191.3,4.56348852]
[1750606323686,0.03418488,2191.7,2191.5,4.56297667]
[1750606323985,1.4175,2192.0,2191.5,9.92097454]
[1750606324187,8.557,2192.0,2191.7,4.56266824]
[1750606324981,0.03418488,2191.9,2191.7,4.56265122]
[1750606325178,0.03418488,2191.9,2191.8,4.56246007]
[1750606325384,9.3775,2192.3,2191.5,9.92097454]
[1750606325562,0.03418488,2192.2,2191.9,4.56214094]
[1750606325889,8.556,2192.1,2192.0,4.56203028]
[1750606326087,10.57555,2192.3,2192.1,4.56173529]
[1750606326088,1.19805,2192.3,2192.1,4.56173529]
[1750606326291,8.59018488,2192.2,2191.8,11.33017454]
[1750606326493,11.4175,2192.6,2191.8,1.4092]
[1750606326799,9.99223488,2192.5,2191.8,1.4092]
[1750606327095,9.95805,2192.5,2191.8,5.97156105]
[1750606327304,0.03418488,2192.4,2191.7,4.56256699]
[1750606327459,0.03418488,2192.4,2191.6,4.56286508]
[1750606327659,0.03418488,2192.4,2191.7,10.0]
[1750606327864,1.4168,2192.3,2191.2,1.509]
[1750606328079,1.4168,2192.0,2191.2,1.509]
[1750606328301,8.58918488,2191.9,2191.2,1.509]
[1750606328499,1.4168,2191.8,2190.9,1.509]
[1750606328677,0.03418488,2191.7,2190.9,1.509]
[1750606328869,2.41739849,2191.8,2191.4,9.92097454]
[1750606329088,1.4168,2192.4,2191.4,9.92097454]
[1750606329277,1.4168,2192.4,2191.2,1.509]
[1750606329278,0.03418488,2192.2,2191.8,6.07136524]
[1750606329596,8.58818488,2192.2,2191.8,4.56236524]
[1750606329768,8.554,2192.2,2191.8,4.56236524]
[1750606329967,0.03418488,2192.1,2191.7,9.92097454]
[1750606330188,8.554,2192.2,2191.7,12.06397199]
[1750606330389,0.03418488,2192.1,2191.8,4.56246007]
[1750606330601,0.03418488,2192.1,2191.7,9.92097454]
[1750606330776,0.03418488,2192.1,2191.6,4.56283376]
[1750606330982,0.03418488,2192.1,2191.7,10.0]
[1750606331171,0.89300337,2192.1,2191.5,1.509]
[1750606331503,0.89300337,2192.1,2191.5,11.509]
[1750606331707,0.89300337,2192.1,2191.6,10.0]
[1750606331867,0.89300337,2192.1,2191.5,1.509]
[1750606332066,0.89300337,2192.1,2191.5,10.0]
[1750606332289,0.89300337,2192.1,2191.2,4.1432]
[1750606332290,0.94470034,2192.0,2191.4,4.56318737]
[1750606332496,1.63598488,2191.9,2191.2,4.56354987]
[1750606332669,1.63598488,2191.9,2191.1,4.56388436]
[1750606332869,2.603,2191.8,2190.9,6.10448007]
[1750606333064,9.01008337,2191.7,2191.0,4.56397107]
[1750606333301,9.01008337,2191.7,2190.6,1.5402]
[1750606333302,1.6018,2191.6,2190.6,1.5402]
[1750606333480,0.03418488,2191.5,2190.9,4.56432235]
[1750606333893,0.03418488,2191.5,2190.8,4.56445429]
[1750606334406,1.6018,2191.6,2191.2,4.56361231]
[1750606334584,10.18798488,2191.6,2191.2,4.56370938]
[1750606334906,10.1538,2191.6,2191.3,4.56349311]
[1750606335100,0.03418488,2191.5,2191.3,4.56349311]
[1750606335403,0.03418488,2191.5,2191.4,4.56329287]
[1750606335601,8.552,2191.7,2191.4,14.48419631]
[1750606335910,0.85881849,2192.1,2191.7,4.56261911]
[1750606335911,8.552,2191.8,2191.7,4.56261911]
[1750606336106,8.552,2191.8,2191.6,4.56276775]
[1750606336474,8.552,2191.8,2191.7,4.56266824]
[1750606337396,8.552,2191.8,2191.6,4.562773]
[1750606337597,8.552,2191.8,2191.5,4.56298708]
[1750606337981,8.552,2191.8,2191.6,4.56285326]
[1750606338184,8.552,2191.8,2191.5,4.56305311]
[1750606338406,8.552,2191.8,2191.7,4.56266824]
[1750606338915,8.55,2191.8,2191.7,4.56266824]
[1750606339105,8.55,2191.8,2191.6,4.56277017]
[1750606339491,8.55,2191.8,2191.5,4.5630022]
[1750606339699,8.55,2191.8,2191.5,14.5630022]
[1750606340405,8.55,2191.8,2191.6,4.56286117]
[1750606341129,8.55,2191.8,2191.6,4.562742]
[1750606341327,8.549,2191.8,2191.6,4.562742]
[1750606341526,8.549,2191.8,2191.7,4.56266824]
[1750606341829,8.549,2191.8,2191.5,10.0]
[1750606342199,8.549,2191.8,2191.7,4.56266824]
[1750606342408,8.549,2191.9,2191.8,4.56246007]
[1750606343486,1.6018,2192.2,2191.9,4.56222034]
[1750606343716,8.548,2192.0,2191.8,4.56235239]
[1750606343911,1.6018,2192.2,2191.7,14.4835888]
[1750606344111,8.548,2192.0,2191.7,14.4835888]
[1750606344330,8.548,2192.0,2191.8,4.56245223]
[1750606344545,1.5622,2192.5,2191.8,6.26760378]
[1750606344828,8.547,2192.6,2192.2,14.48249558]
[1750606345005,0.03418488,2192.5,2191.9,16.1269816]
[1750606345235,1.5622,2192.4,2191.9,1.6438]
[1750606345398,0.03418488,2192.3,2192.1,10.0]
[1750606345598,0.03418488,2192.3,2192.1,4.56178868]
[1750606345799,0.03418488,2192.3,2191.9,11.6438]
[1750606346041,0.03418488,2192.3,2191.9,4.5621551]
[1750606346199,0.03418488,2192.3,2192.0,4.5619241]
[1750606346532,1.5622,2192.4,2192.1,4.56166735]
[1750606346738,8.547,2192.6,2192.1,4.56166886]
[1750606347030,8.545,2192.5,2192.2,9.92097454]
[1750606347210,8.545,2192.5,2192.2,14.48258065]
[1750606347611,8.545,2192.5,2192.2,4.56160611]
[1750606347811,8.545,2192.5,2192.0,4.56195969]
[1750606347812,8.545,2192.5,2192.1,10.0]
[1750606348011,8.545,2192.5,2192.0,10.0]
[1750606348236,0.95694596,2192.4,2192.0,10.0]
[1750606348436,0.95694596,2192.4,2191.6,9.92097454]
[1750606348437,0.03418488,2192.3,2191.3,20.88497454]
[1750606348738,1.6485,2192.2,2191.7,10.0]
[1750606348939,1.6485,2192.2,2191.5,14.56294605]
[1750606348940,0.03418488,2192.1,2191.5,14.56294605]
[1750606349159,8.544,2192.0,2191.5,4.56297479]
[1750606349432,0.89200337,2191.9,2191.7,10.0]
[1750606350125,0.89200337,2191.9,2191.4,10.0]
[1750606350126,0.03418488,2191.9,2191.4,10.0]
[1750606350746,0.03418488,2191.9,2191.5,4.56308464]
[1750606351050,0.03418488,2191.9,2191.4,10.0]
[1750606351351,1.6485,2192.2,2191.8,4.5623667]
[1750606351552,8.542,2192.1,2191.8,4.56246007]
[1750606351724,8.542,2192.1,2191.9,4.56205332]
[1750606351919,8.542,2192.4,2192.2,4.56159122]
[1750606352125,9.55378,2192.4,2192.1,4.56170434]
[1750606352560,2.595,2192.9,2192.2,11.51707454]
[1750606352561,1.5758,2192.9,2192.2,11.51707454]
[1750606352725,8.541,2192.7,2192.5,4.56083727]
[1750606352927,0.049096,2192.8,2192.6,4.5607954]
[1750606353120,0.08328088,2192.8,2192.5,10.0]
[1750606353326,0.049096,2192.8,2192.7,4.5605874]
[1750606353949,0.049096,2192.8,2192.5,19.92097454]
[1750606354128,0.94229048,2192.8,2192.5,10.0]
[1750606354327,0.94229048,2192.8,2192.5,14.56085114]
[1750606354523,0.049096,2192.8,2192.6,4.56067713]
[1750606354724,8.54,2192.7,2192.6,4.56067713]
[1750606355332,8.54,2192.7,2192.5,10.0]
[1750606355333,8.54,2192.7,2192.5,14.56093213]
[1750606355540,8.54,2192.7,2192.5,10.0]
[1750606355724,0.89309448,2192.6,2192.5,10.0]
[1750606356554,0.03418488,2192.6,2192.5,10.0]
[1750606356750,0.03418488,2192.6,2192.2,1.5961]
[1750606356954,0.03418488,2192.6,2192.2,14.56151765]
[1750606357153,0.03418488,2192.6,2192.2,10.0]
[1750606357331,0.03418488,2192.6,2191.9,11.5933]
[1750606357532,1.05705297,2192.6,2192.3,10.0]
[1750606357732,1.05705297,2192.6,2192.1,4.56181862]
[1750606357946,1.05705297,2192.6,2192.3,10.0]
[1750606358476,1.6054,2192.7,2192.4,4.56115542]
[1750606358768,8.57118488,2192.6,2192.4,9.92097454]
[1750606358980,8.537,2192.6,2192.4,14.48218094]
[1750606359135,8.537,2192.6,2192.5,4.56100342]
[1750606359335,8.537,2192.6,2192.4,14.48207538]
[1750606359536,8.537,2192.6,2192.5,4.56100342]
[1750606359931,0.049096,2192.8,2192.7,4.5605874]
[1750606360249,0.049096,2192.8,2192.7,14.48156194]
[1750606360456,0.049096,2192.8,2192.7,26.39035407]
[1750606360650,0.049096,2192.8,2192.4,4.56110679]
[1750606360876,0.049096,2192.8,2192.7,14.5605874]
[1750606361077,0.049096,2192.8,2192.7,24.48156194]
[1750606361667,0.049096,2192.8,2192.7,26.01636194]
[1750606363788,0.049096,2192.8,2192.7,26.56636194]
[1750606363980,0.049096,2192.8,2192.7,30.79187721]
[1750606364378,0.049096,2192.8,2192.7,26.01636194]
[1750606364578,0.049096,2192.8,2192.7,26.56636194]
[1750606365191,0.06457856,2193.4,2193.3,4.5593398]
[1750606366310,0.06457856,2193.4,2191.0,4.56412596]
[1750606366311,4.1128,2193.0,2191.0,4.56412596]
[1750606366532,4.1128,2193.0,2191.1,10.51444314]
[1750606366533,1.5933,2192.6,2191.1,10.51444314]
[1750606366676,1.5933,2192.6,2191.5,14.48393429]
[1750606366876,0.55,2192.3,2191.1,0.5934686]
[1750606367081,0.55,2191.9,2191.0,2.594]
[1750606367283,11.5933,2191.7,2190.9,9.92097454]
[1750606367478,11.5933,2191.7,2190.8,2.595]
[1750606367479,0.03418488,2191.6,2190.8,2.595]
[1750606368210,1.5933,2191.5,2190.8,2.595]
[1750606368395,1.5933,2191.5,2189.8,4.56653692]
[1750606368396,0.03418488,2191.4,2190.2,25.90663774]
[1750606368605,0.03418488,2191.4,2190.3,5.18566377]
[1750606368800,0.03418488,2191.4,2190.4,10.0]
[1750606368975,0.03418488,2191.4,2190.5,0.04564518]
[1750606369181,0.03418488,2191.4,2190.4,10.0]
[1750606369695,0.03418488,2191.4,2190.5,0.04564619]
[1750606370018,1.5933,2191.5,2190.9,4.56415477]
[1750606370184,1.5933,2191.5,2191.0,2.595]
[1750606371623,0.03418488,2191.4,2191.0,2.595]
[1750606372005,0.03418488,2191.4,2191.1,2.595]
[1750606372320,0.03418488,2191.4,2191.2,2.595]
[1750606372624,1.5933,2191.5,2191.2,2.595]
[1750606373125,0.03418488,2191.6,2191.2,2.595]
[1750606373491,0.03418488,2191.6,2191.5,14.48405918]
[1750606373694,0.46331922,2191.8,2191.7,14.56266824]
[1750606373922,0.46331922,2191.8,2191.7,17.15766824]
[1750606374097,0.46331922,2191.8,2191.7,17.70766824]
[1750606374292,0.46331922,2191.8,2191.7,19.31756824]
[1750606374490,0.03418488,2192.7,2192.0,4.56195836]
[1750606374735,0.03418488,2192.7,2192.1,4.56181652]
[1750606374937,0.03418488,2192.7,2192.2,2.595]
[1750606375139,0.03418488,2192.8,2192.2,2.595]
[1750606375438,0.48260696,2192.8,2192.0,4.5619923]
[1750606375610,0.03418488,2192.8,2192.1,2.595]
[1750606375805,1.47228122,2192.8,2192.1,2.595]
[1750606376126,1.5976,2192.9,2192.1,7.15675181]
[1750606376315,0.03418488,2192.8,2192.2,4.56150029]
[1750606376518,0.53270272,2193.4,2192.3,10.04560939]
[1750606376720,0.06457856,2193.4,2193.0,9.92097454]
[1750606376899,0.06457856,2193.4,2193.1,2.63159142]
[1750606377228,0.06457856,2193.4,2193.0,2.586]
[1750606377799,0.06457856,2193.4,2193.2,4.55947205]
[1750606377997,0.06457856,2193.4,2193.1,0.04559542]
[1750606378200,0.06457856,2193.4,2193.3,4.5593398]
[1750606378602,0.06457856,2193.4,2193.3,16.13760455]
[1750606378903,0.06457856,2193.4,2193.3,26.09201434]
[1750606379625,0.06457856,2193.4,2193.3,14.5593398]
[1750606379931,0.06457856,2193.4,2193.3,4.5593398]
[1750606380541,0.06457856,2193.4,2192.9,10.0]
[1750606380700,0.06457856,2193.4,2193.1,10.0]
[1750606380900,0.06457856,2193.4,2192.6,2.585]
[1750606381105,0.14265567,2193.3,2192.7,4.56044897]
[1750606381329,0.14265567,2193.2,2192.6,4.56070323]
[1750606381639,1.68695567,2193.1,2192.3,4.56133185]
[1750606381823,1.68695567,2193.1,2192.1,2.585]
[1750606381824,0.14265567,2193.0,2192.4,4.56120416]
[1750606382028,0.14265567,2192.9,2192.3,4.56133248]
[1750606382203,0.14265567,2192.8,2192.7,4.5605874]
[1750606382402,1.5443,2193.1,2192.6,4.56074751]
[1750606382606,1.5443,2193.1,2192.5,4.56085676]
[1750606382607,0.14268034,2193.0,2192.5,4.56100342]
[1750606382829,1.60887856,2193.4,2192.6,10.0]
[1750606383029,1.60887856,2193.4,2192.8,4.56017774]
[1750606383030,0.14266437,2193.3,2192.8,4.56017774]
[1750606383341,0.14267035,2193.2,2192.9,4.56004654]
[1750606383505,1.02775429,2193.3,2192.9,4.56004654]
[1750606383837,0.06457856,2193.4,2193.3,4.5593398]
[1750606384233,0.06457856,2193.4,2193.3,4.60492707]
[1750606384625,0.06457856,2193.4,2193.3,14.5593398]
[1750606385258,0.00176943,2193.4,2193.3,15.56390184]
[1750606385433,0.00176943,2193.4,2193.3,20.18464114]
[1750606385757,0.08006112,2194.0,2193.9,6.17439289]
[1750606385918,0.08006112,2194.0,2193.9,29.27593659]
[1750606386114,0.08006112,2194.0,2193.9,29.23036743]
[1750606387136,0.08006112,2194.0,2193.9,16.17439289]
[1750606387356,0.08006112,2194.0,2193.9,28.68036743]
[1750606388368,0.08006112,2194.0,2193.9,29.23036743]
[1750606388525,0.08006112,2194.0,2193.9,37.75436743]
[1750606388723,0.08006112,2194.0,2193.9,26.64536743]
[1750606389155,0.08006112,2194.0,2193.9,37.75136743]
[1750606389361,0.08006112,2194.0,2193.9,37.75036743]
[1750606389562,0.09554367,2194.5,2194.4,14.47802886]
[1750606389738,0.09554367,2194.5,2194.4,27.06202886]
[1750606390393,0.09554367,2194.5,2194.4,17.14105432]
[1750606390764,0.09554367,2194.5,2193.6,12.5063]
[1750606390946,0.09554367,2194.5,2193.8,2.584]
[1750606391258,0.09554367,2194.5,2193.9,1.59387667]
[1750606391459,0.09554367,2194.5,2194.3,4.55714418]
[1750606391663,0.09554367,2194.5,2194.2,4.55731054]
[1750606391870,0.09554367,2194.5,2193.9,16.10622091]
[1750606391871,0.09554367,2194.5,2194.3,0.04556882]
[1750606392032,0.09554367,2194.5,2194.4,4.55705432]
[1750606393369,0.09554367,2194.5,2194.3,2.583]
[1750606393675,0.09554367,2194.5,2194.4,4.55705432]
[1750606395846,0.09554367,2194.5,2194.4,5.00333462]
[1750606397479,0.09554367,2194.5,2194.4,15.00333462]
[1750606399393,0.09554367,2194.5,2194.4,5.00333462]
[1750606401755,0.09554367,2194.5,2194.4,0.4462803]
[1750606402087,0.09554367,2194.5,2194.3,4.55725936]
[1750606402252,0.09554367,2194.5,2193.9,1.5483]
[1750606402611,1.5065,2194.4,2194.1,10.0]
[1750606402804,1.5065,2194.4,2194.1,14.55756383]
[1750606403007,1.5065,2194.4,2194.1,10.0]
[1750606403312,1.5065,2194.4,2194.1,14.55755793]
[1750606403664,2.51800437,2194.4,2194.1,10.0]
[1750606403863,2.51800437,2194.4,2194.0,7.14081603]
[1750606403864,2.51800437,2194.4,2193.9,4.55799651]
[1750606404163,0.14258286,2194.3,2194.0,10.0]
[1750606404358,2.51800437,2194.4,2194.0,10.0]
[1750606404613,0.14258335,2194.3,2193.9,4.55805099]
[1750606404790,0.14258612,2194.2,2194.0,4.55785711]
[1750606404990,0.27561314,2194.3,2194.0,4.55785711]
[1750606405193,0.14258551,2194.2,2194.0,4.55785711]
[1750606405414,0.27561314,2194.3,2194.1,4.55765943]
[1750606405556,0.14258202,2194.2,2194.1,4.55765943]
[1750606405761,0.14258201,2194.2,2194.1,4.55765943]
[1750606407082,0.09554367,2194.5,2194.4,4.55705432]
[1750606407606,0.23810234,2194.5,2194.4,5.00932295]
[1750606408072,0.09554367,2194.5,2194.4,5.00932295]
[1750606408275,0.23809788,2194.5,2194.4,5.00932295]
[1750606409217,0.23809871,2194.5,2194.4,5.00932295]
[1750606409974,0.23810075,2194.5,2194.4,5.00932295]
[1750606411093,0.23809785,2194.5,2194.4,5.00932295]
[1750606411288,0.23809874,2194.5,2194.4,5.05488769]
[1750606411490,0.23809874,2194.5,2194.4,5.00932295]
[1750606411722,0.23809874,2194.5,2194.4,4.55705432]
[1750606413179,0.23809874,2194.5,2194.4,6.15975432]
[1750606413596,0.23809347,2194.5,2194.4,6.15975432]
[1750606413818,0.23809207,2194.5,2194.4,6.20531873]
[1750606413997,0.23808775,2194.5,2194.4,18.53137418]
[1750606414198,0.23808775,2194.5,2194.4,18.48580977]
[1750606415314,0.23808544,2194.5,2194.4,18.48580977]
[1750606415530,0.23808295,2194.5,2194.4,18.48580977]
[1750606416078,0.09554367,2194.5,2194.4,16.88310977]
[1750606416309,0.23808241,2194.5,2194.4,17.33090159]
[1750606416917,0.23808305,2194.5,2194.4,17.33090159]
[1750606417117,0.09554367,2194.5,2194.4,17.33090159]
[1750606417321,0.23808334,2194.5,2194.4,17.33090159]
[1750606417681,1.5634,2195.6,2194.6,1.6512]
[1750606417884,1.5634,2195.6,2195.3,4.55516988]
[1750606418085,2.71799134,2196.3,2195.5,14.55477112]
[1750606418086,1.5634,2195.9,2195.5,14.55477112]
[1750606418336,1.5634,2195.9,2195.6,4.55456367]
[1750606418622,1.5634,2195.9,2195.5,14.55467129]
[1750606419703,1.5634,2195.9,2195.6,4.55456367]
[1750606419886,10.0634,2196.2,2195.6,4.55456367]
[1750606420221,1.68990879,2195.7,2195.1,1.6512]
[1750606420425,1.68990879,2195.7,2195.3,14.55508733]
[1750606420655,1.68990879,2195.7,2195.4,4.5549296]
[1750606421103,1.68990879,2195.7,2195.3,10.0]
[1750606421603,1.68990879,2195.7,2195.4,4.55496474]
[1750606422626,1.68990879,2195.7,2195.3,14.55512481]
[1750606423222,1.68990879,2195.7,2195.2,10.0]
[1750606423942,1.68990879,2195.7,2195.1,4.55548957]
[1750606424442,1.68990879,2195.7,2195.1,10.0]
[1750606424671,1.68990879,2195.7,2195.1,14.55559689]
[1750606424953,1.68990879,2195.7,2195.2,4.55519883]
[1750606425304,1.68990879,2195.7,2195.3,4.5551627]
[1750606425949,1.68990879,2195.7,2195.1,14.55551822]
[1750606425950,1.68990879,2195.7,2195.2,4.5552832]
[1750606426150,8.494,2195.6,2195.3,4.55517738]
[1750606426332,8.494,2195.6,2195.3,4.55509081]
[1750606427045,1.68990879,2195.7,2195.1,11.6224]
[1750606427252,1.68990879,2195.7,2195.5,4.5546224]
[1750606427461,0.14199134,2196.3,2195.7,2.1724]
[1750606427768,2.0401652,2196.9,2196.2,4.55331936]
[1750606428059,2.0401652,2196.9,2195.9,11.54337454]
[1750606428060,2.0401652,2196.9,2195.9,11.6224]
[1750606428270,4.55222223,2196.8,2195.9,10.0]
[1750606428472,1.6558,2196.6,2195.9,4.55390296]
[1750606428672,1.6558,2196.6,2195.8,15.50104426]
[1750606428874,1.6558,2196.6,2195.9,4.55389749]
[1750606429175,1.6558,2196.6,2195.9,4.55386555]
[1750606429476,1.6558,2196.6,2195.9,4.55393955]
[1750606429677,1.20651581,2196.5,2195.9,4.55393955]
[1750606429974,0.14246994,2196.4,2195.9,4.55393955]
[1750606430269,1.06404587,2196.5,2196.0,4.55362447]
[1750606430270,0.14246994,2196.3,2196.0,4.55362447]
[1750606430462,0.14246994,2196.2,2196.0,4.55362447]
[1750606430658,0.14246994,2196.1,2195.8,13.523]
[1750606430861,1.6558,2196.1,2195.8,13.523]
[1750606431187,1.6558,2196.1,2195.8,10.947]
[1750606431392,1.6558,2196.1,2195.5,0.45517146]
[1750606431393,0.14247489,2196.0,2195.5,0.45517146]
[1750606431676,0.14247489,2195.9,2195.6,4.55445377]
[1750606431838,1.6558,2196.1,2195.6,4.55445377]
[1750606432037,0.1424862,2196.0,2195.7,4.55434586]
[1750606432268,0.1424862,2195.9,2195.8,4.55414882]
[1750606432675,1.6558,2196.1,2195.5,26.18345434]
[1750606432872,0.14247545,2196.0,2195.7,4.59984379]
[1750606433176,1.6558,2196.1,2195.9,4.55394143]
[1750606433349,1.6558,2196.1,2195.5,28.80179977]
[1750606433540,1.6558,2196.1,2196.0,4.55373406]
[1750606433745,1.6558,2196.4,2196.1,4.5533769]
[1750606434044,0.14246407,2196.3,2196.1,4.5533769]
[1750606434248,1.92778459,2196.4,2196.1,4.5533769]
[1750606434474,1.92778459,2196.4,2196.1,4.55339331]
[1750606434775,0.14246293,2196.3,2196.1,4.55339331]
[1750606435067,1.92778459,2196.4,2196.1,4.55339331]
[1750606435268,0.14246346,2196.3,2196.1,4.55339331]
[1750606435475,1.92778459,2196.4,2196.1,4.55339331]
[1750606435671,0.14246361,2196.3,2195.9,4.55389974]
[1750606435876,1.92778459,2196.4,2196.0,4.55357387]
[1750606436176,0.1424629,2196.3,2196.0,4.5536288]
[1750606436382,0.1424629,2196.2,2195.9,4.55384224]
[1750606436542,0.31342934,2196.3,2196.0,4.55357363]
[1750606436743,0.31342934,2196.3,2196.0,4.55358782]
[1750606438045,0.31342934,2196.3,2195.7,1.6224]
[1750606438440,0.14246863,2196.2,2195.7,1.6224]
[1750606438642,0.31342934,2196.3,2195.9,4.55375624]
[1750606438889,0.14246952,2196.2,2195.8,4.55411088]
[1750606439087,0.31342934,2196.3,2195.8,2.56]
[1750606439251,0.14247266,2196.2,2195.8,2.56]
[1750606439457,0.14247266,2196.1,2195.7,10.0]
[1750606439743,1.6447,2196.0,2195.7,17.11433572]
[1750606440042,1.6447,2196.0,2195.7,2.56]
[1750606440239,1.6447,2196.0,2195.5,0.45517146]
[1750606440473,1.6447,2196.0,2195.6,7.11453627]
[1750606440726,0.14248631,2195.9,2195.2,2.56]
[1750606440878,2.26158631,2195.8,2195.2,2.56]
[1750606441076,0.14248631,2195.7,2195.2,2.56]
[1750606441295,2.1191,2195.8,2195.2,2.56]
[1750606441296,0.14248631,2195.6,2195.2,2.56]
[1750606441520,2.1191,2195.8,2195.2,7.11538752]
[1750606441817,0.14250659,2195.7,2195.2,7.11538752]
[1750606442012,0.14250659,2195.6,2195.3,4.55506081]
[1750606442218,1.5691,2195.8,2195.2,2.56]
[1750606442527,0.25957186,2195.7,2195.2,2.56]
[1750606442732,0.25957186,2195.7,2195.3,4.55516882]
[1750606442733,0.14250632,2195.6,2195.3,4.55516882]
[1750606442878,0.25957186,2195.7,2195.2,7.1152955]
[1750606443276,0.25957186,2195.7,2195.1,13.15328288]
[1750606443528,0.25957186,2195.7,2195.2,2.56]
[1750606443905,0.25957186,2195.7,2195.0,4.55571085]
[1750606444219,0.25957186,2195.7,2195.1,7.11558982]
[1750606444450,0.25957186,2195.7,2195.1,2.56]
[1750606444881,0.25957186,2195.7,2195.1,7.11559862]
[1750606445616,0.25957186,2195.7,2195.1,2.56]
[1750606446406,0.25957186,2195.7,2195.1,7.1155883]
[1750606446606,0.25957186,2195.7,2195.2,4.5553586]